fUSD/lending_fUSD_20240324
["ID","MTS","AMOUNT","RATE_DAILY","PERIOD"]
[320345414,1711314633613,-331.51511032,0.000179,2]
[320345416,1711314633622,-551.54707935,0.000179,2]
[320345418,1711314633631,-551.54707932,0.000179,2]
[320345420,1711314633640,-551.54707932,0.000179,2]
[320345421,1711314633650,-551.54707932,0.000179,2]
[320345423,1711314633659,-551.54707932,0.000179,2]
[320345425,1711314633668,-551.54707932,0.000179,2]
[320345427,1711314633678,-551.54707932,0.000179,2]
[320345429,1711314633687,-551.54707932,0.000179,2]
[320345432,1711314633696,-551.54707932,0.000179,2]
[320345433,1711314633706,-551.54707932,0.000179,2]
[320345435,1711314633715,-551.54707932,0.000179,2]
[320345438,1711314633725,-551.54707932,0.000179,2]
[320345439,1711314633734,-551.54707932,0.000179,2]
[320345442,1711314633743,-551.54707932,0.000179,2]
[320345444,1711314633753,-551.54707932,0.000179,2]
[320345446,1711314633763,-404.204138,0.000179,2]
[320345447,1711314633775,-551.54707932,0.000179,2]
[320345450,1711314633785,-551.54707932,0.000179,2]
[320345452,1711314633794,-551.54707932,0.000179,2]
[320345454,1711314633803,-551.54707932,0.000179,2]
[320345456,1711314633813,-551.54707932,0.000179,2]
[320345458,1711314633822,-1477.1159677,0.00017908,2]
[320345460,1711314633833,-729713.7697483,0.0001798,2]
[320345462,1711314633846,-300.0,0.0001798,2]
[320345464,1711314633858,-5897.97876645,0.0001798,2]
[320345466,1711314633870,-648.12882621,0.0001798,2]
[320345469,1711314633881,-1869.77078087,0.0001798,2]
[320345471,1711314633892,-1215.07590594,0.0001798,2]
[320345473,1711314633904,-1679.06194262,0.0001798,2]
[320345475,1711314633915,-7565.37996506,0.0001798,2]
[320345478,1711314633926,-11385.22222117,0.0001798,2]
[320345480,1711314633937,-156890.35581119,0.0001798,2]
[320345498,1711314634089,-849.99059013,0.0001798,2]
[320345500,1711314634100,-274.689828,0.0001798,2]
[320345935,1711314638234,-98208.89219829,0.0001798,2]
[320345938,1711314638243,-4553.9112608,0.00017982,2]
[320345941,1711314638253,-2173.11708694,0.00017998,2]
[320345944,1711314638262,-4938.68654978,0.00017998,2]
[320345948,1711314638272,-1238.94442072,0.00017999,2]
[320345951,1711314638281,-24642.73406244,0.00018,2]
[320345960,1711314638317,-710.74419248,0.00018,2]
[320345967,1711314638352,-17753.43128147,0.00018,2]
[320346311,1711314641131,-2700.44774985,0.00018,2]
[320346314,1711314641167,-1396.28041158,0.00018,2]
[320346316,1711314641179,-1578.27450831,0.00018,2]
[320346318,1711314641191,-856.47442383,0.00018,2]
[320346514,1711314643268,-549.6,0.00017759,2]
[320346515,1711314643279,-602.550004,0.00017759,2]
[320346520,1711314643328,-324.9659638,0.00017759,2]
[320346522,1711314643337,-1477.1159678,0.00017876,2]
[320346524,1711314643347,-5367.92977842,0.00018,2]
[320346526,1711314643358,-91311.82162885,0.00018,2]
[320346528,1711314643371,-513.18500005,0.00018,2]
[320346531,1711314643383,-701.38996808,0.00018,2]
[320346533,1711314643395,-301.73500002,0.00018,2]
[320346537,1711314643426,-0.00523262,0.00018,2]
[320346539,1711314643438,-6638.88093999,0.00018,2]
[320346542,1711314643449,-574308.1661152,0.00018,2]
[320346552,1711314643541,-995608.68284544,0.00018,2]
[320346555,1711314643551,-285001.80029147,0.00018,2]
[320346557,1711314643562,-330.98988329,0.00018036,2]
[320346559,1711314643572,-184.86,0.00018069,2]
[320346561,1711314643581,-1584.68807491,0.0001808,2]
[320346563,1711314643590,-323.71729788,0.0001808,2]
[320346565,1711314643599,-720.29220179,0.00018082,2]
[320346567,1711314643609,-178.56930884,0.00018091,2]
[320346569,1711314643618,-382.296,0.000181,2]
[320346571,1711314643628,-161.302,0.000181,2]
[320346573,1711314643637,-1071.374,0.000181,2]
[320346575,1711314643646,-1477.1159678,0.00018158,2]
[320346577,1711314643655,-4970.0,0.000182,2]
[320346579,1711314643664,-347.79,0.00018241,2]
[320346581,1711314643674,-720.29220179,0.00018364,2]
[320346583,1711314643683,-178.56930884,0.00018392,2]
[320346585,1711314643692,-1477.1159678,0.00018545,2]
[320346587,1711314643701,-569.0,0.00018567,2]
[320346589,1711314643714,-152.00641088,0.00018584,2]
[320346591,1711314643723,-236.56678915,0.00018605,2]
[320346593,1711314643733,-748.4684641,0.00018624,2]
[320346595,1711314643742,-720.29220179,0.00018645,2]
[320346597,1711314643752,-150.94788018,0.00018647,2]
[320346599,1711314643761,-160.07391968,0.0001867,2]
[320346601,1711314643771,-226.70873653,0.00018678,2]
[320346603,1711314643780,-201.06857966,0.00018691,2]
[320346605,1711314643789,-178.56930884,0.00018694,2]
[320346607,1711314643798,-903.16,0.0001874,2]
[320346611,1711314643810,-152.00641088,0.00018745,2]
[320346613,1711314643821,-270.51,0.00018771,2]
[320346614,1711314643832,-236.56678915,0.00018772,2]
[320346617,1711314643841,-652.21,0.00018818,2]
[320346619,1711314643851,-152.00641088,0.0001882,2]
[320346621,1711314643860,-748.4684641,0.00018822,2]
[320346623,1711314643870,-748.4684641,0.00018832,2]
[320346625,1711314643881,-150.94788018,0.0001884,2]
[320346627,1711314643890,-200.0,0.00018848,2]
[320346629,1711314643899,-150.94788018,0.00018854,2]
[320346631,1711314643908,-3451.49823762,0.0001888,3]
[320346633,1711314643918,-181414.98600805,0.0001888,2]
[320346635,1711314643931,-66362.58505786,0.0001888,2]
[320346637,1711314643942,-1217.50675063,0.0001888,2]
[320346640,1711314643955,-1522.58277384,0.0001888,2]
[320346642,1711314643966,-344323.09198184,0.0001888,2]
[320346644,1711314643976,-291.930189,0.0001888,2]
[320346646,1711314643986,-291.930189,0.0001888,2]
[320346648,1711314643995,-151.0,0.0001888,2]
[320346650,1711314644006,-151.0,0.0001888,2]
[320346652,1711314644016,-151.0,0.0001888,2]
[320346654,1711314644027,-151.0,0.0001888,2]
[320346656,1711314644037,-378.242558,0.0001888,2]
[320346658,1711314644046,-378.242558,0.0001888,2]
[320346661,1711314644056,-476.310847,0.0001888,2]
[320346663,1711314644068,-476.310847,0.0001888,2]
[320346664,1711314644077,-151.0,0.0001888,2]
[320346667,1711314644089,-151.0,0.0001888,2]
[320346670,1711314644107,-151.0,0.0001888,2]
[320346672,1711314644124,-151.0,0.0001888,2]
[320346674,1711314644138,-151.0,0.0001888,2]
[320346676,1711314644148,-151.0,0.0001888,2]
[320346678,1711314644157,-151.0,0.0001888,2]
[320346680,1711314644168,-151.0,0.0001888,2]
[320346682,1711314644178,-151.0,0.0001888,2]
[320346684,1711314644188,-151.0,0.0001888,2]
[320346686,1711314644197,-151.0,0.0001888,2]
[320346688,1711314644207,-151.0,0.0001888,2]
[320346728,1711314644565,-151.0,0.0001888,2]
[320346731,1711314644584,-161.113784,0.0001888,2]
[320346733,1711314644594,-151.0,0.0001888,2]
[320346735,1711314644603,-151.0,0.0001888,2]
[320346736,1711314644612,-151.0,0.0001888,2]
[320346737,1711314644620,-151.0,0.0001888,2]
[320346738,1711314644630,-152.481166,0.0001888,2]
[320346739,1711314644639,-152.493636,0.0001888,2]
[320346740,1711314644648,-206.12414,0.0001888,2]
[320346741,1711314644656,-151.0,0.0001888,2]
[320346742,1711314644665,-154.021709,0.00018881,2]
[320346744,1711314644675,-152.00641088,0.00018882,2]
[320346746,1711314644684,-152.00641088,0.00018903,2]
[320346748,1711314644694,-152.00641088,0.00018907,2]
[320346751,1711314644707,-165.33093653,0.00018914,2]
[320346753,1711314644716,-720.29220179,0.00018927,2]
[320346755,1711314644725,-226.70873653,0.00018943,2]
[320346757,1711314644734,-166.66666667,0.00018985,2]
[320346759,1711314644743,-641.06216439,0.00018992,2]
[320346761,1711314644753,-226.70873653,0.00018993,2]
[320346763,1711314644762,-178.56930884,0.00018995,2]
[320346765,1711314644772,-586.84412762,0.00018999,2]
[320346767,1711314644781,-1467.60065329,0.00019,2]
[320346769,1711314644791,-297.11911601,0.00019,2]
[320346771,1711314644800,-1250.0,0.00019,3]
[320346773,1711314644810,-1250.0,0.00019,3]
[320346775,1711314644819,-150.94788018,0.00019004,2]
[320346777,1711314644828,-150.94788018,0.00019014,2]
[320346779,1711314644838,-748.4684641,0.00019025,2]
[320346781,1711314644849,-218.3078965,0.00019035,2]
[320346783,1711314644858,-236.56678915,0.00019049,2]
[320346785,1711314644868,-151.68842336,0.00019065,2]
[320346787,1711314644878,-469.2421,0.00019078,2]
[320346789,1711314644887,-103203.4031,0.00019078,14]
[320346791,1711314644897,-1000.0,0.00019078,2]
[320346793,1711314644906,-10000.0,0.00019078,2]
[320346795,1711314644916,-168.09993406,0.00019085,2]
[320346797,1711314644925,-154.021709,0.00019091,2]
[320346799,1711314644935,-154.6821531,0.00019098,2]
[320346801,1711314644945,-226.70873653,0.00019152,2]
[320346804,1711314644955,-7016.7451442,0.00019176,2]
[320346806,1711314644969,-786.28716571,0.00019176,2]
[320346808,1711314644980,-2794.57800455,0.00019176,2]
[320346810,1711314644989,-167.00369201,0.00019176,2]
[320346812,1711314644999,-272.03353629,0.00019178,2]
[320346814,1711314645008,-501.11624243,0.00019178,2]
[320346816,1711314645017,-500.0,0.00019178,2]
[320346818,1711314645027,-399.66038479,0.00019178,2]
[320346820,1711314645036,-572.53927042,0.00019178,2]
[320346822,1711314645046,-500.99064077,0.00019178,2]
[320346824,1711314645055,-500.0,0.00019178,2]
[320346826,1711314645064,-500.0,0.00019178,2]
[320346828,1711314645074,-500.0,0.00019178,2]
[320346830,1711314645084,-536.96578545,0.00019178,2]
[320346832,1711314645093,-501.69174489,0.00019178,2]
[320346834,1711314645125,-518.36541809,0.00019178,2]
[320346836,1711314645135,-224.61409034,0.00019178,2]
[320346838,1711314645144,-500.0,0.00019178,2]
[320346840,1711314645154,-500.0,0.00019178,2]
[320346842,1711314645164,-500.0,0.00019178,2]
[320346844,1711314645173,-500.0,0.00019178,2]
[320346846,1711314645183,-500.0,0.00019178,2]
[320346848,1711314645193,-500.0,0.00019178,2]
[320346850,1711314645206,-502.45705636,0.00019178,2]
[320346852,1711314645218,-500.0,0.00019178,2]
[320346854,1711314645227,-500.0,0.00019178,2]
[320346856,1711314645236,-500.0,0.00019178,2]
[320346858,1711314645245,-500.0,0.00019178,2]
[320346860,1711314645254,-500.0,0.00019178,2]
[320346862,1711314645262,-500.0,0.00019178,2]
[320346864,1711314645272,-500.0,0.00019178,2]
[320346866,1711314645281,-500.0,0.00019178,2]
[320346868,1711314645291,-500.0,0.00019178,2]
[320346870,1711314645300,-500.0,0.00019178,2]
[320346872,1711314645310,-503.85,0.00019178,2]
[320346874,1711314645319,-500.0,0.00019178,2]
[320346876,1711314645329,-500.0,0.00019178,2]
[320346878,1711314645339,-500.0,0.00019178,2]
[320346880,1711314645348,-467.19111072,0.00019178,2]
[320346882,1711314645358,-500.0,0.00019178,2]
[320346884,1711314645368,-500.0,0.00019178,2]
[320346886,1711314645377,-500.0,0.00019178,2]
[320346888,1711314645386,-500.0,0.00019178,2]
[320346890,1711314645396,-500.0,0.00019178,2]
[320346892,1711314645406,-500.0,0.00019178,2]
[320346894,1711314645415,-500.0,0.00019178,2]
[320346896,1711314645424,-500.0,0.00019178,2]
[320346898,1711314645433,-337.20941248,0.00019178,2]
[320346900,1711314645443,-500.0,0.00019178,2]
[320346902,1711314645452,-500.0,0.00019178,2]
[320346904,1711314645462,-500.0,0.00019178,2]
[320346907,1711314645472,-502.91312191,0.00019178,2]
[320346909,1711314645481,-500.0,0.00019178,2]
[320346911,1711314645491,-500.0,0.00019178,2]
[320346913,1711314645501,-500.0,0.00019178,2]
[320346915,1711314645511,-408.43967397,0.00019178,2]
[320346917,1711314645521,-500.0,0.00019178,2]
[320346919,1711314645530,-500.0,0.00019178,2]
[320346921,1711314645539,-500.0,0.00019178,2]
[320346923,1711314645548,-500.0,0.00019178,2]
[320346925,1711314645558,-500.0,0.00019178,2]
[320346927,1711314645568,-568.22,0.00019178,2]
[320346929,1711314645577,-500.0,0.00019178,2]
[320346931,1711314645586,-500.0,0.00019178,2]
[320346933,1711314645597,-531.2,0.00019178,2]
[320346935,1711314645606,-500.0,0.00019178,2]
[320346937,1711314645615,-500.0,0.00019178,2]
[320346939,1711314645624,-503.64618411,0.00019178,2]
[320346941,1711314645634,-500.0,0.00019178,2]
[320346943,1711314645643,-500.0,0.00019178,2]
[320346945,1711314645652,-500.0,0.00019178,2]
[320346947,1711314645662,-500.0,0.00019178,2]
[320346949,1711314645671,-500.0,0.00019178,2]
[320346951,1711314645680,-500.0,0.00019178,2]
[320346954,1711314645690,-500.0,0.00019178,2]
[320346955,1711314645699,-500.0,0.00019178,2]
[320346958,1711314645709,-500.0,0.00019178,2]
[320346960,1711314645718,-500.58565234,0.00019178,2]
[320346962,1711314645727,-500.0,0.00019178,2]
[320346964,1711314645736,-500.0,0.00019178,2]
[320346966,1711314645745,-500.0,0.00019178,2]
[320346968,1711314645754,-500.0,0.00019178,2]
[320346970,1711314645763,-500.0,0.00019178,2]
[320346972,1711314645772,-500.0,0.00019178,2]
[320346974,1711314645780,-500.0,0.00019178,2]
[320346976,1711314645791,-500.0,0.00019178,2]
[320346978,1711314645800,-500.0,0.00019178,2]
[320346980,1711314645809,-439.8615682,0.00019178,2]
[320346982,1711314645819,-500.0,0.00019178,2]
[320346984,1711314645828,-504.57431576,0.00019178,2]
[320346986,1711314645837,-500.0,0.00019178,2]
[320346988,1711314645846,-500.0,0.00019178,2]
[320346990,1711314645855,-500.0,0.00019178,2]
[320346992,1711314645864,-500.0,0.00019178,2]
[320346993,1711314645873,-500.0,0.00019178,2]
[320346994,1711314645882,-500.0,0.00019178,2]
[320346995,1711314645891,-500.0,0.00019178,2]
[320346996,1711314645900,-500.0,0.00019178,2]
[320346997,1711314645910,-500.0,0.00019178,2]
[320346998,1711314645919,-500.0,0.00019178,2]
[320346999,1711314645928,-500.0,0.00019178,2]
[320347001,1711314645937,-500.0,0.00019178,2]
[320347003,1711314645946,-500.0,0.00019178,2]
[320347005,1711314645955,-500.0,0.00019178,2]
[320347007,1711314645965,-500.0,0.00019178,2]
[320347009,1711314645974,-696.4,0.00019178,2]
[320347011,1711314645984,-500.0,0.00019178,2]
[320347013,1711314645993,-500.0,0.00019178,2]
[320347015,1711314646002,-500.0,0.00019178,2]
[320347018,1711314646012,-500.0,0.00019178,2]
[320347020,1711314646021,-500.0,0.00019178,2]
[320347022,1711314646031,-500.0,0.00019178,2]
[320347025,1711314646040,-430.54632031,0.00019178,2]
[320347028,1711314646049,-500.0,0.00019178,2]
[320347029,1711314646058,-500.0,0.00019178,2]
[320347032,1711314646067,-500.0,0.00019178,2]
[320347034,1711314646076,-500.0,0.00019178,2]
[320347036,1711314646085,-200.0,0.00019178,2]
[320347038,1711314646094,-500.0,0.00019178,2]
[320347040,1711314646104,-500.0,0.00019178,2]
[320347043,1711314646113,-500.0,0.00019178,2]
[320347046,1711314646123,-500.0,0.00019178,2]
[320347048,1711314646135,-500.0,0.00019178,2]
[320347050,1711314646144,-500.0,0.00019178,2]
[320347052,1711314646153,-500.0,0.00019178,2]
[320347054,1711314646162,-500.0,0.00019178,2]
[320347056,1711314646172,-500.0,0.00019178,2]
[320347058,1711314646181,-500.0,0.00019178,2]
[320347060,1711314646191,-500.0,0.00019178,2]
[320347062,1711314646200,-500.0,0.00019178,2]
[320347064,1711314646212,-500.0,0.00019178,2]
[320347066,1711314646221,-500.0,0.00019178,2]
[320347068,1711314646230,-582.61414829,0.00019178,2]
[320347070,1711314646239,-500.0,0.00019178,2]
[320347072,1711314646248,-500.0,0.00019178,2]
[320347074,1711314646258,-500.0,0.00019178,2]
[320347076,1711314646267,-500.0,0.00019178,2]
[320347078,1711314646276,-500.0,0.00019178,2]
[320347080,1711314646286,-500.0,0.00019178,2]
[320347082,1711314646295,-500.0,0.00019178,2]
[320347084,1711314646305,-500.0,0.00019178,2]
[320347087,1711314646314,-500.0,0.00019178,2]
[320347090,1711314646323,-500.0,0.00019178,2]
[320347095,1711314646333,-500.0,0.00019178,2]
[320347099,1711314646342,-500.0,0.00019178,2]
[320347101,1711314646351,-500.0,0.00019178,2]
[320347104,1711314646360,-500.0,0.00019178,2]
[320347106,1711314646369,-500.0,0.00019178,2]
[320347108,1711314646379,-500.0,0.00019178,2]
[320347110,1711314646388,-500.0,0.00019178,2]
[320347112,1711314646398,-500.0,0.00019178,2]
[320347114,1711314646407,-500.0,0.00019178,2]
[320347116,1711314646416,-500.0,0.00019178,2]
[320347118,1711314646425,-500.0,0.00019178,2]
[320347120,1711314646434,-500.0,0.00019178,2]
[320347122,1711314646443,-500.0,0.00019178,2]
[320347124,1711314646452,-500.0,0.00019178,2]
[320347126,1711314646462,-500.0,0.00019178,2]
[320347128,1711314646471,-500.0,0.00019178,2]
[320347130,1711314646481,-500.0,0.00019178,2]
[320347132,1711314646490,-500.0,0.00019178,2]
[320347134,1711314646499,-500.0,0.00019178,2]
[320347136,1711314646510,-500.0,0.00019178,2]
[320347138,1711314646519,-500.0,0.00019178,2]
[320347140,1711314646528,-500.0,0.00019178,2]
[320347142,1711314646537,-500.0,0.00019178,2]
[320347144,1711314646546,-500.0,0.00019178,2]
[320347146,1711314646556,-500.0,0.00019178,2]
[320347148,1711314646565,-500.0,0.00019178,2]
[320347150,1711314646574,-500.0,0.00019178,2]
[320347153,1711314646584,-497.20350042,0.00019178,2]
[320347155,1711314646594,-500.0,0.00019178,2]
[320347157,1711314646604,-500.0,0.00019178,2]
[320347158,1711314646613,-500.0,0.00019178,2]
[320347161,1711314646624,-500.0,0.00019178,2]
[320347163,1711314646634,-500.0,0.00019178,2]
[320347165,1711314646645,-500.0,0.00019178,2]
[320347166,1711314646655,-500.0,0.00019178,2]
[320347168,1711314646664,-156.68345508,0.00019178,2]
[320347171,1711314646674,-500.0,0.00019178,2]
[320347173,1711314646685,-500.0,0.00019178,2]
[320347175,1711314646695,-500.0,0.00019178,2]
[320347177,1711314646705,-500.0,0.00019178,2]
[320347179,1711314646715,-500.0,0.00019178,2]
[320347181,1711314646724,-500.0,0.00019178,2]
[320347183,1711314646734,-500.0,0.00019178,2]
[320347185,1711314646743,-500.0,0.00019178,2]
[320347187,1711314646752,-500.0,0.00019178,2]
[320347189,1711314646762,-500.0,0.00019178,2]
[320347190,1711314646770,-500.0,0.00019178,2]
[320347192,1711314646779,-500.0,0.00019178,2]
[320347194,1711314646789,-500.0,0.00019178,2]
[320347196,1711314646798,-500.0,0.00019178,2]
[320347198,1711314646807,-500.0,0.00019178,2]
[320347200,1711314646816,-503.1021849,0.00019178,2]
[320347202,1711314646825,-500.0,0.00019178,2]
[320347204,1711314646834,-500.0,0.00019178,2]
[320347206,1711314646843,-500.0,0.00019178,2]
[320347209,1711314646852,-527.53,0.00019178,2]
[320347211,1711314646862,-518.16,0.00019178,2]
[320347212,1711314646871,-500.0,0.00019178,2]
[320347215,1711314646880,-500.0,0.00019178,2]
[320347217,1711314646889,-500.0,0.00019178,2]
[320347219,1711314646899,-500.0,0.00019178,2]
[320347221,1711314646908,-500.0,0.00019178,2]
[320347223,1711314646917,-503.71,0.00019178,2]
[320347225,1711314646927,-500.0,0.00019178,2]
[320347227,1711314646936,-500.0,0.00019178,2]
[320347229,1711314646945,-870.58,0.00019178,2]
[320347231,1711314646954,-500.0,0.00019178,2]
[320347233,1711314646964,-543.4,0.00019178,2]
[320347235,1711314646973,-500.0,0.00019178,2]
[320347237,1711314646982,-500.0,0.00019178,2]
[320347239,1711314646992,-500.0,0.00019178,2]
[320347241,1711314647001,-500.0,0.00019178,2]
[320347243,1711314647010,-500.0,0.00019178,2]
[320347245,1711314647020,-500.0,0.00019178,2]
[320347246,1711314647029,-500.0,0.00019178,2]
[320347247,1711314647038,-500.0,0.00019178,2]
[320347248,1711314647047,-500.0,0.00019178,2]
[320347249,1711314647057,-706.83,0.00019178,2]
[320347250,1711314647066,-500.0,0.00019178,2]
[320347251,1711314647075,-190.13874692,0.00019178,2]
[320347253,1711314647084,-500.0,0.00019178,2]
[320347255,1711314647093,-500.0,0.00019178,2]
[320347257,1711314647102,-500.0,0.00019178,2]
[320347259,1711314647111,-500.0,0.00019178,2]
[320347261,1711314647120,-794.86,0.00019178,2]
[320347263,1711314647131,-500.0,0.00019178,2]
[320347265,1711314647140,-679.34,0.00019178,2]
[320347267,1711314647149,-506.79911252,0.00019178,2]
[320347269,1711314647159,-500.0,0.00019178,2]
[320347271,1711314647169,-247.21681609,0.00019178,2]
[320347273,1711314647178,-500.0,0.00019178,2]
[320347275,1711314647187,-500.0,0.00019178,2]
[320347277,1711314647197,-500.0,0.00019178,2]
[320347279,1711314647206,-500.0,0.00019178,2]
[320347281,1711314647218,-500.0,0.00019178,2]
[320347283,1711314647226,-500.0,0.00019178,2]
[320347285,1711314647235,-1351.95,0.00019178,2]
[320347287,1711314647244,-501.66552086,0.00019178,2]
[320347289,1711314647254,-618.03,0.00019178,2]
[320347291,1711314647262,-500.0,0.00019178,2]
[320347293,1711314647272,-500.0,0.00019178,2]
[320347295,1711314647281,-947.4,0.00019178,2]
[320347297,1711314647290,-500.0,0.00019178,2]
[320347299,1711314647299,-500.0,0.00019178,2]
[320347301,1711314647308,-500.0,0.00019178,2]
[320347303,1711314647318,-500.0,0.00019178,2]
[320347305,1711314647328,-500.0,0.00019178,2]
[320347307,1711314647337,-500.0,0.00019178,2]
[320347309,1711314647346,-1291.97,0.00019178,2]
[320347311,1711314647355,-500.0,0.00019178,2]
[320347313,1711314647365,-500.0,0.00019178,2]
[320347315,1711314647374,-500.0,0.00019178,2]
[320347317,1711314647383,-500.0,0.00019178,2]
[320347319,1711314647392,-541.46,0.00019178,2]
[320347321,1711314647401,-669.5,0.00019178,2]
[320347323,1711314647410,-500.0,0.00019178,2]
[320347325,1711314647421,-500.0,0.00019178,2]
[320347327,1711314647430,-500.0,0.00019178,2]
[320347329,1711314647439,-500.0,0.00019178,2]
[320347332,1711314647449,-642.11,0.00019178,2]
[320347334,1711314647459,-1262.93,0.00019178,2]
[320347336,1711314647468,-676.65,0.00019178,2]
[320347338,1711314647477,-1596.11,0.00019178,2]
[320347340,1711314647486,-500.0,0.00019178,2]
[320347342,1711314647495,-500.0,0.00019178,2]
[320347344,1711314647504,-500.0,0.00019178,2]
[320347346,1711314647514,-500.0,0.00019178,2]
[320347348,1711314647523,-976.43,0.00019178,2]
[320347350,1711314647532,-500.0,0.00019178,2]
[320347352,1711314647541,-500.0,0.00019178,2]
[320347354,1711314647550,-500.0,0.00019178,2]
[320347356,1711314647559,-500.0,0.00019178,2]
[320347358,1711314647568,-500.0,0.00019178,2]
[320347360,1711314647578,-500.0,0.00019178,2]
[320347362,1711314647587,-500.0,0.00019178,2]
[320347364,1711314647596,-503.35450172,0.00019178,2]
[320347366,1711314647605,-500.0,0.00019178,2]
[320347368,1711314647614,-500.0,0.00019178,2]
[320347370,1711314647624,-500.0,0.00019178,2]
[320347372,1711314647633,-1147.47,0.00019178,2]
[320347374,1711314647642,-845.64,0.00019178,2]
[320347376,1711314647651,-500.0,0.00019178,2]
[320347378,1711314647660,-500.0,0.00019178,2]
[320347380,1711314647669,-500.0,0.00019178,2]
[320347382,1711314647678,-500.0,0.00019178,2]
[320347384,1711314647687,-500.0,0.00019178,2]
[320347386,1711314647695,-500.0,0.00019178,2]
[320347388,1711314647705,-500.0,0.00019178,2]
[320347390,1711314647715,-500.0,0.00019178,2]
[320347392,1711314647724,-649.47,0.00019178,2]
[320347394,1711314647733,-500.0,0.00019178,2]
[320347396,1711314647742,-500.0,0.00019178,2]
[320347398,1711314647751,-500.0,0.00019178,2]
[320347400,1711314647761,-500.0,0.00019178,2]
[320347402,1711314647770,-500.0,0.00019178,2]
[320347404,1711314647779,-500.0,0.00019178,2]
[320347406,1711314647789,-500.0,0.00019178,2]
[320347408,1711314647798,-500.0,0.00019178,2]
[320347410,1711314647807,-500.0,0.00019178,2]
[320347412,1711314647816,-3395.86,0.00019178,2]
[320347414,1711314647825,-500.0,0.00019178,2]
[320347416,1711314647835,-500.0,0.00019178,2]
[320347418,1711314647846,-500.0,0.00019178,2]
[320347420,1711314647855,-500.0,0.00019178,2]
[320347422,1711314647865,-1042.63,0.00019178,2]
[320347424,1711314647874,-495.22694607,0.00019178,2]
[320347426,1711314647883,-792.64,0.00019178,2]
[320347428,1711314647892,-500.0,0.00019178,2]
[320347430,1711314647902,-156.472879,0.00019178,2]
[320347432,1711314647912,-500.0,0.00019178,2]
[320347434,1711314647923,-500.0,0.00019178,2]
[320347436,1711314647933,-500.0,0.00019178,2]
[320347438,1711314647944,-500.0,0.00019178,2]
[320347440,1711314647954,-500.0,0.00019178,2]
[320347442,1711314647963,-500.0,0.00019178,2]
[320347444,1711314647972,-500.0,0.00019178,2]
[320347446,1711314647981,-500.0,0.00019178,2]
[320347448,1711314647990,-291.930189,0.00019178,2]
[320347450,1711314647999,-1318.94,0.00019178,2]
[320347452,1711314648008,-951.59,0.00019178,2]
[320347454,1711314648018,-500.0,0.00019178,2]
[320347456,1711314648028,-500.0,0.00019178,2]
[320347458,1711314648037,-500.0,0.00019178,2]
[320347460,1711314648046,-500.0,0.00019178,2]
[320347462,1711314648055,-609.48,0.00019178,2]
[320347464,1711314648065,-291.930189,0.00019178,2]
[320347466,1711314648074,-500.0,0.00019178,2]
[320347467,1711314648083,-500.0,0.00019178,2]
[320347468,1711314648092,-500.0,0.00019178,2]
[320347469,1711314648101,-500.0,0.00019178,2]
[320347470,1711314648111,-500.0,0.00019178,2]
[320347471,1711314648121,-500.0,0.00019178,2]